bitfinex/quotes_SOLUSD_20240725
["timestamp","ask_amount","ask_price","bid_price","bid_amount"]
[1721898408359,0.10587213,171.09,171.08,14.78]
[1721898408569,0.10587213,171.09,171.08,34.78]
[1721898409800,0.10587213,171.09,171.08,20.0]
[1721898409954,0.10587213,171.09,171.07,20.0]
[1721898410453,0.10587213,171.09,171.06,16.03645229]
[1721898412069,15.68637213,171.09,171.06,7.93629606]
[1721898414361,5.8458,171.07,170.93,29.56]
[1721898414555,5.8458,171.07,170.93,30.7294954]
[1721898414779,62.63,171.08,170.93,30.7294954]
[1721898414959,5.8455,171.07,170.93,30.7294954]
[1721898415273,68.4752,171.08,170.93,30.7294954]
[1721898415484,68.4752,171.08,170.94,65.0]
[1721898415652,68.4752,171.08,170.94,40.0]
[1721898416073,68.4752,171.08,170.94,20.0]
[1721898416253,68.4752,171.08,170.95,20.0]
[1721898416454,68.4752,171.08,170.94,20.0]
[1721898416764,22.5945,171.05,170.93,29.56]
[1721898417366,46.0707,171.05,170.93,29.56]
[1721898418270,17.63,171.03,170.91,2.28426653]
[1721898418463,17.63,171.03,170.89,20.0]
[1721898418464,33.6577,171.02,170.89,29.56]
[1721898418774,39.5049,171.02,170.89,29.56]
[1721898419086,16.0277,171.02,170.9,20.0]
[1721898419558,16.0277,171.02,170.91,20.0]
[1721898420174,16.0277,171.02,170.91,21.16980803]
[1721898420477,16.0277,171.02,170.92,45.0]
[1721898420676,16.0277,171.02,170.93,20.0]
[1721898421269,16.0277,171.02,170.9,22.33408097]
[1721898421454,33.6577,171.02,170.9,20.0]
[1721898423185,33.6577,171.02,170.9,40.0]
[1721898423577,16.0277,171.02,170.92,49.56]
[1721898423776,16.0277,171.02,170.93,65.0]
[1721898423995,16.0277,171.02,170.93,20.0]
[1721898427077,16.0277,171.02,170.93,41.1697192]
[1721898427287,16.0277,171.02,170.95,20.0]
[1721898427494,16.0277,171.02,170.96,20.0]
[1721898427909,16.0277,171.02,170.96,40.0]
[1721898428108,16.0277,171.02,170.97,1.16947442]
[1721898428279,16.0277,171.02,170.96,21.16949238]
[1721898428481,16.0277,171.02,170.96,41.16949238]
[1721898428874,16.0277,171.02,170.97,45.0]
[1721898429081,6.2474,171.05,170.98,30.72939304]
[1721898429280,6.2474,171.05,170.99,20.0]
[1721898429492,6.2474,171.05,170.99,21.16927536]
[1721898429687,6.2474,171.05,170.99,20.0]
[1721898431308,6.2474,171.05,170.99,21.16932269]
[1721898431505,6.2474,171.05,170.99,20.0]
[1721898431809,6.2474,171.05,170.99,21.1692948]
[1721898431979,6.2474,171.05,170.99,20.0]
[1721898435506,6.2474,171.05,170.93,2.33530649]
[1721898435703,6.2474,171.05,170.92,21.16949774]
[1721898435910,6.2474,171.05,170.91,82.0108374]
[1721898436215,6.2474,171.05,170.92,20.0]
[1721898436388,6.2474,171.05,170.94,20.0]
[1721898436585,6.2474,171.05,170.92,21.16955848]
[1721898436982,17.63,171.04,170.92,20.0]
[1721898437293,17.63,171.04,170.93,20.0]
[1721898437504,17.63,171.04,170.93,1.16971612]
[1721898438299,23.4765,171.04,170.91,56.32915335]
[1721898438621,16.4973,171.03,170.92,45.0]
[1721898439808,16.4973,171.03,170.93,20.0]
[1721898440017,68.6995,171.02,170.9,27.13324431]
[1721898440184,68.6995,171.02,170.9,20.0]
[1721898440384,6.0695,171.02,170.9,40.0]
[1721898440592,6.0695,171.02,170.92,20.0]
[1721898440898,6.0695,171.02,170.93,20.0]
[1721898441279,6.0695,171.02,170.94,20.0]
[1721898442103,32.723,171.01,170.89,21.16971723]
[1721898442407,38.5709,171.01,170.9,20.0]
[1721898442716,15.093,171.01,170.9,1.16996907]
[1721898443396,15.093,171.01,170.89,20.0]
[1721898443603,32.723,171.01,170.89,20.0]
[1721898444191,14.8,170.99,170.93,14.8]
[1721898445408,14.8,170.98,170.93,14.8]
[1721898445792,14.8,170.98,170.92,14.8]
[1721898446294,31.2409,170.96,170.85,42.18825253]
[1721898446499,21.3685,170.95,170.89,14.8]
[1721898446906,14.8,170.94,170.88,14.8]
[1721898447413,4.98573594,170.95,170.9,14.8]
[1721898447594,4.98573594,170.95,170.91,14.8]
[1721898447801,4.98573594,170.95,170.94,14.8]
[1721898448010,16.4409,170.96,170.94,14.8]
[1721898448211,15.7943,171.02,170.93,20.0]
[1721898448412,404.9943,171.02,170.95,20.0]
[1721898448715,404.9943,171.02,170.95,40.0]
[1721898448923,404.9943,171.02,170.95,41.16949847]
[1721898449115,404.9943,171.02,170.95,40.0]
[1721898449807,404.9943,171.02,170.95,20.0]
[1721898450413,404.9943,171.02,170.96,45.0]
[1721898450623,404.9943,171.02,170.98,20.0]
[1721898450814,6.0906,171.05,170.99,20.0]
[1721898451006,6.0906,171.05,170.99,21.16928378]
[1721898452220,6.0906,171.05,170.99,1.16928378]
[1721898452398,6.0906,171.05,170.98,20.0]
[1721898452803,6.0906,171.05,170.99,1.16932231]
[1721898453319,6.0906,171.05,170.98,20.0]
[1721898454519,6.0906,171.05,170.99,1.16932383]
[1721898454826,6.0906,171.05,170.98,20.0]
[1721898455804,23.7206,171.05,170.91,29.6]
[1721898456007,23.4766,171.04,170.91,31.94517833]
[1721898456204,6.0906,171.05,170.92,21.16975597]
[1721898456404,23.7206,171.05,170.92,41.16975597]
[1721898456610,6.0906,171.05,170.93,1.16967462]
[1721898456816,6.0906,171.05,170.92,21.16967462]
[1721898457125,11.9368,171.05,170.92,20.0]
[1721898457301,29.5668,171.05,170.93,20.0]
[1721898457503,32.9761,171.04,170.92,20.0]
[1721898457723,15.3461,171.01,170.9,20.0]
[1721898457919,6.2545,171.0,170.88,29.6]
[1721898459143,12.1024,171.0,170.88,29.6]
[1721898459517,12.1024,171.0,170.89,20.0]
[1721898459732,6.2545,171.0,170.89,20.0]
[1721898460932,6.2545,171.0,170.9,20.0]
[1721898461232,6.2545,171.0,170.88,29.6]
[1721898461233,6.2545,171.0,170.91,20.0]
[1721898461820,6.2545,171.0,170.89,20.0]
[1721898462232,6.2545,171.0,170.9,20.0]
[1721898462532,6.2545,171.0,170.89,20.0]
[1721898466222,15.6377,170.99,170.89,20.0]
[1721898466628,15.6377,170.99,170.87,20.0]
[1721898466939,15.6377,170.99,170.88,45.0]
[1721898467140,15.6377,170.99,170.89,20.0]
[1721898467845,21.486,170.99,170.89,20.0]
[1721898468017,39.116,170.99,170.89,20.0]
[1721898468218,39.116,170.99,170.87,20.0]
[1721898468919,33.2677,170.99,170.87,20.0]
[1721898470723,15.7242,170.98,170.87,20.0]
[1721898471828,33.3542,170.98,170.87,20.0]
[1721898472026,33.3542,170.98,170.86,20.0]
[1721898472329,14.81,170.95,170.89,14.81]
[1721898472535,14.81,170.95,170.9,20.0]
[1721898472926,14.81,170.97,170.91,14.81]
[1721898473329,14.81,170.97,170.92,14.81]
[1721898476544,14.81,170.97,170.9,20.0]
[1721898476839,14.81,170.97,170.91,14.81]
[1721898477244,14.81,170.97,170.92,14.81]
[1721898478150,15.7242,170.98,170.93,14.81]
[1721898479527,30.5342,170.98,170.93,14.81]
[1721898480650,30.5342,170.98,170.92,14.81]
[1721898480851,14.81,170.97,170.91,14.81]
[1721898481031,14.81,170.96,170.9,14.81]
[1721898483552,14.81,170.95,170.9,14.81]
[1721898483849,14.81,170.92,170.87,14.81]
[1721898484246,16.016,170.91,170.87,14.81]
[1721898484454,16.016,170.91,170.86,14.81]
[1721898484757,16.016,170.91,170.82,80.25859301]
[1721898485328,30.826,170.91,170.85,14.81]
[1721898485557,30.826,170.91,170.81,22.27858622]
[1721898485558,30.826,170.91,170.86,14.81]
[1721898485753,16.016,170.91,170.86,14.81]
[1721898486783,16.016,170.91,170.87,14.81]
[1721898487077,16.016,170.91,170.81,23.2972643]
[1721898487291,16.016,170.91,170.86,14.81]
[1721898489589,30.826,170.91,170.86,14.81]
[1721898490289,30.826,170.91,170.82,20.0]
[1721898490488,30.826,170.91,170.85,14.81]
[1721898490796,30.826,170.91,170.71,15.01556134]
[1721898490797,5.8562,170.76,170.71,2.35095463]
[1721898490997,6.0768,170.78,170.59,15.4131]
[1721898490998,14.81,170.72,170.61,20.0]
[1721898491162,14.81,170.72,170.58,6.1232]
[1721898491163,14.81,170.68,170.62,14.81]
[1721898491361,14.81,170.68,170.57,20.0]
[1721898491362,20.6689,170.68,170.57,20.0]
[1721898491683,14.81,170.68,170.61,14.81]
[1721898492179,17.63,170.69,170.59,20.0]
[1721898492490,17.63,170.69,170.54,22.34798797]
[1721898492491,5.8592,170.67,170.54,22.34798797]
[1721898492786,5.8592,170.67,170.55,9.17993851]
[1721898492996,30.0236,170.68,170.6,5.8616]
[1721898493192,17.63,170.67,170.55,9.17993851]
[1721898493386,62.63,170.66,170.53,20.0]
[1721898493583,45.0,170.66,170.53,20.0]
[1721898493900,12.3936,170.68,170.6,5.8615]
[1721898494108,6.5347,170.68,170.65,5.8598]
[1721898494405,2.27781555,170.74,170.66,5.8594]
[1721898494406,6.3225,170.74,170.66,5.8594]
[1721898494574,6.3225,170.74,170.62,20.0]
[1721898494777,6.3225,170.74,170.64,20.0]
[1721898494971,6.3225,170.74,170.65,1.17160702]
[1721898495192,6.3225,170.74,170.7,5.8581]
[1721898496596,6.3225,170.74,170.65,20.0]
[1721898496597,6.3225,170.74,170.66,1.1716081]
[1721898497491,16.3015,170.76,170.67,20.0]
[1721898497690,16.3015,170.76,170.68,20.0]
[1721898498685,16.3015,170.76,170.67,20.0]
[1721898498888,16.3015,170.76,170.68,20.0]
[1721898499193,16.3015,170.76,170.67,20.0]
[1721898499397,16.3015,170.76,170.68,20.0]
[1721898499601,16.3015,170.76,170.66,21.17151982]
[1721898499602,16.3015,170.76,170.67,20.0]
[1721898499780,16.3015,170.76,170.68,20.0]
[1721898500493,16.3015,170.76,170.66,20.0]
[1721898500696,16.3015,170.76,170.64,1.17145728]
[1721898500697,16.3015,170.76,170.64,21.17145728]
[1721898500999,16.3015,170.76,170.67,20.0]
[1721898501197,16.3015,170.76,170.68,20.0]
[1721898501786,16.3015,170.76,170.67,20.0]
[1721898502194,6.018,170.79,170.69,20.0]
[1721898502382,6.018,170.79,170.71,20.0]
[1721898502599,270.3609,170.83,170.71,41.17117458]
[1721898502889,16.2609,170.83,170.74,20.0]
[1721898503697,6.4991,170.84,170.75,1.17105831]
[1721898503901,6.4991,170.84,170.75,20.0]
[1721898504100,6.4991,170.84,170.69,49.72]
[1721898504305,5.8543,170.82,170.7,65.0]
[1721898504607,24.1291,170.84,170.7,65.0]
[1721898504908,5.8541,170.82,170.7,65.0]
[1721898507487,5.8538,170.83,170.71,20.0]
[1721898507691,5.8538,170.83,170.72,20.0]
[1721898507896,24.1291,170.84,170.72,21.17119028]
[1721898508186,6.4991,170.84,170.75,20.0]
[1721898508992,6.4991,170.84,170.76,20.0]
[1721898509187,6.4991,170.84,170.73,2.18981549]
[1721898509188,395.5083,170.88,170.78,20.0]
[1721898509504,6.3083,170.88,170.78,20.0]
[1721898509705,6.3083,170.88,170.79,21.1706882]
[1721898510396,6.3083,170.88,170.78,20.0]
[1721898510800,5.8524,170.87,170.76,20.0]
[1721898510997,5.8524,170.87,170.77,45.0]
[1721898511203,5.8524,170.87,170.78,20.0]
[1721898512300,12.1603,170.88,170.78,20.0]
[1721898514707,23.9083,170.88,170.74,20.0]
[1721898515013,23.9083,170.88,170.75,45.0]
[1721898515214,23.4526,170.87,170.73,22.18984842]
[1721898515401,29.7604,170.88,170.75,20.0]
[1721898515602,23.9083,170.88,170.77,20.0]
[1721898515908,6.3083,170.88,170.78,1.17077055]
[1721898516298,6.3083,170.88,170.77,40.0]
[1721898516498,6.3083,170.88,170.78,21.17077055]
[1721898517184,6.4032,170.92,170.8,20.0]
[1721898517388,6.4032,170.92,170.82,20.0]
[1721898517587,6.4032,170.92,170.83,20.0]
[1721898517989,6.4032,170.92,170.83,21.17045611]
[1721898518722,6.4032,170.92,170.8,42.1665]
[1721898518889,12.2539,170.92,170.81,65.0]
[1721898520397,6.4032,170.92,170.81,65.0]
[1721898520707,12.2539,170.92,170.81,65.0]
[1721898520914,12.2539,170.92,170.82,20.0]
[1721898521110,6.4032,170.92,170.82,20.0]
[1721898521808,5.8513,170.91,170.81,65.0]
[1721898523098,12.2539,170.92,170.81,65.0]
[1721898524208,6.4032,170.92,170.81,65.0]
[1721898524418,12.2539,170.92,170.81,65.0]
[1721898525029,6.4032,170.92,170.81,65.0]
[1721898525219,5.8511,170.91,170.81,65.0]
[1721898525721,6.4032,170.92,170.81,65.0]
[1721898525922,6.4032,170.92,170.82,1.17049206]
[1721898526227,6.4032,170.92,170.83,41.17042742]
[1721898526425,6.4032,170.92,170.84,20.0]
[1721898529221,6.4032,170.92,170.82,21.17028075]
[1721898529526,6.4032,170.92,170.83,45.0]
[1721898529714,6.4032,170.92,170.84,20.0]
[1721898531131,6.4032,170.92,170.84,40.0]
[1721898532339,6.4032,170.92,170.84,20.0]
[1721898533718,12.2539,170.92,170.84,20.0]
[1721898533922,6.4032,170.92,170.84,20.0]
[1721898534924,12.2539,170.92,170.83,20.0]
[1721898535133,12.2539,170.92,170.81,20.0]
[1721898535309,6.4032,170.92,170.82,45.0]
[1721898535508,6.4032,170.92,170.83,20.0]
[1721898538435,12.254,170.92,170.83,20.0]
[1721898538728,12.254,170.92,170.79,41.17042459]
[1721898538914,12.254,170.92,170.8,45.0]
[1721898539114,5.8511,170.91,170.81,20.0]
[1721898539316,17.6,170.91,170.77,20.0]
[1721898539731,5.8516,170.9,170.77,20.0]
[1721898539908,23.4511,170.91,170.78,1.17068082]
[1721898540615,5.8515,170.9,170.77,21.17065519]
[1721898540833,5.8515,170.9,170.78,65.0]
[1721898541035,5.8515,170.9,170.79,20.0]
[1721898541334,5.8515,170.9,170.78,65.0]
[1721898541636,5.8517,170.89,170.78,65.0]
[1721898541832,5.8514,170.9,170.78,65.0]
[1721898542312,62.6,170.89,170.76,21.3017]
[1721898542738,62.6,170.89,170.73,35.73655605]
[1721898542739,5.8528,170.86,170.73,6.10655605]
[1721898542938,23.4528,170.86,170.73,6.10655605]
[1721898543151,6.1045,170.84,170.73,6.10655605]
[1721898543440,5.8537,170.83,170.71,29.63]
[1721898543637,5.8537,170.83,170.69,43.48079348]
[1721898543832,6.1045,170.84,170.69,23.48079348]
[1721898544148,45.0,170.83,170.7,20.0]
[1721898544434,62.6,170.83,170.7,20.0]
[1721898544631,68.454,170.83,170.71,1.17118321]
[1721898546237,68.454,170.83,170.7,20.0]
[1721898546534,68.454,170.83,170.71,1.17124498]
[1721898549435,33.6732,170.82,170.71,1.17124498]
[1721898549631,16.0732,170.82,170.72,40.0]
[1721898549934,16.0732,170.82,170.73,20.0]
[1721898550327,16.0732,170.82,170.74,65.0]
[1721898550520,6.1045,170.84,170.77,20.0]
[1721898550719,6.1045,170.84,170.77,21.17083284]
[1721898550919,6.1045,170.84,170.77,20.0]
[1721898551515,16.0732,170.86,170.78,20.0]
[1721898553036,16.0732,170.86,170.79,1.17066724]
[1721898553940,16.0732,170.86,170.78,21.17066753]
[1721898554134,16.0732,170.86,170.79,20.0]
[1721898554939,6.484,170.88,170.8,1.17066942]
[1721898555546,6.484,170.88,170.79,41.1705391]
[1721898556139,16.4608,170.9,170.8,45.0]
[1721898556329,16.4608,170.9,170.81,20.0]
[1721898557229,16.4608,170.9,170.82,20.0]
[1721898557425,16.4608,170.9,170.8,45.0]
[1721898557426,16.4608,170.9,170.81,20.0]
[1721898558642,16.4608,170.9,170.81,40.0]
[1721898558844,16.4608,170.9,170.82,45.0]
[1721898559044,16.4608,170.9,170.83,20.0]
[1721898559838,16.4608,170.9,170.8,20.0]
[1721898560041,16.4608,170.9,170.81,45.0]
[1721898560247,16.4608,170.9,170.82,20.0]
[1721898568336,31.2808,170.9,170.85,14.82]
[1721898569445,31.2808,170.9,170.84,14.82]
[1721898572350,16.4608,170.9,170.84,14.82]
[1721898572545,31.2808,170.9,170.84,14.82]
[1721898573566,14.82,170.89,170.84,14.82]
[1721898574660,14.82,170.89,170.82,20.0]
[1721898574661,14.82,170.89,170.83,14.82]
[1721898574859,14.82,170.89,170.84,20.0]
[1721898578262,16.4608,170.9,170.85,14.82]
[1721898578263,31.2808,170.9,170.85,14.82]
[1721898579739,30.2361,170.95,170.89,14.82]
[1721898580046,15.4161,170.95,170.89,34.82]
[1721898580244,15.4161,170.95,170.91,14.82]
[1721898581445,15.4161,170.95,170.9,20.0]
[1721898581641,15.4161,170.95,170.91,14.82]
[1721898581860,30.2361,170.95,170.9,14.82]
[1721898582060,30.2361,170.95,170.89,14.82]
[1721898582374,14.82,170.94,170.88,14.82]
[1721898582677,15.4161,170.95,170.87,14.82]
[1721898582678,14.82,170.93,170.87,14.82]
[1721898582973,14.82,170.93,170.84,35.9201]
[1721898582974,14.82,170.93,170.88,14.82]
[1721898584046,14.82,170.92,170.86,14.82]
[1721898584274,33.0161,170.95,170.86,14.82]
[1721898584275,14.82,170.91,170.86,14.82]
[1721898585051,14.82,170.91,170.85,14.82]
[1721898586552,14.82,170.91,170.86,14.82]
[1721898588364,14.82,170.91,170.81,27.41997966]
[1721898588669,14.82,170.91,170.85,14.82]
[1721898588847,14.82,170.92,170.87,14.82]
[1721898590282,14.82,170.92,170.86,14.82]
[1721898591952,14.82,170.92,170.87,14.82]
[1721898592152,14.82,170.93,170.88,14.82]
[1721898592386,30.2361,170.95,170.89,14.82]
[1721898592956,14.82,170.94,170.89,14.82]
[1721898593162,32.42,170.94,170.83,20.0]
[1721898593452,14.82,170.92,170.83,20.0]
[1721898593653,14.82,170.92,170.86,14.82]
[1721898593853,21.266,170.95,170.87,14.82]
[1721898593854,14.82,170.93,170.87,14.82]
[1721898594265,15.4161,170.95,170.87,14.82]
[1721898594476,14.82,170.94,170.88,14.82]
[1721898594687,14.82,170.94,170.89,14.82]
[1721898597994,14.82,170.94,170.84,40.0]
[1721898598210,14.82,170.94,170.88,14.82]
[1721898599992,14.82,170.93,170.88,14.82]
[1721898601109,14.82,170.9,170.85,20.0]
[1721898601331,14.82,170.9,170.85,14.82]
[1721898601828,14.82,170.91,170.86,14.82]
[1721898602594,15.4161,170.95,170.88,14.82]
[1721898602812,14.82,170.94,170.88,14.82]
[1721898603319,14.82,170.93,170.88,14.82]
[1721898603989,14.82,170.94,170.88,14.82]
[1721898605087,14.82,170.94,170.89,14.82]
[1721898605702,30.2361,170.95,170.89,14.82]
[1721898606602,15.4161,170.95,170.92,14.82]
[1721898606814,660.9,171.0,170.93,14.82]
[1721898606815,30.9844,170.99,170.93,14.82]
[1721898607925,14.82,170.98,170.93,14.82]
[1721898608418,14.82,170.98,170.92,14.82]
[1721898608608,14.82,170.97,170.91,14.82]
[1721898610711,14.82,170.95,170.87,16.6509]
[1721898611020,14.82,170.95,170.89,14.82]
[1721898611601,14.82,170.96,170.9,14.82]
[1721898611799,14.82,170.96,170.86,27.41997966]
[1721898611800,16.1644,170.99,170.94,14.82]
[1721898612306,16.1644,170.99,170.89,40.0]
[1721898612307,16.1644,170.99,170.95,14.82]
[1721898612507,403.8141,171.07,170.97,14.82]
[1721898612508,15.8784,171.04,170.97,14.82]
[1721898612821,15.8784,171.04,170.98,14.82]
[1721898612822,14.82,171.03,170.98,14.82]
[1721898613118,30.6984,171.04,170.99,14.82]
[1721898613422,15.8784,171.04,170.99,14.82]
[1721898613820,16.1513569,171.04,170.99,14.82]
[1721898614323,16.1513569,171.04,171.0,14.82]
[1721898614520,0.2729569,171.04,171.03,14.82]
[1721898617120,0.2729569,171.04,171.0,14.82]
[1721898617419,0.2729569,171.04,170.99,14.82]
[1721898619005,14.82,171.03,170.94,16.533]
[1721898619321,0.2729569,171.04,171.0,14.82]
[1721898619923,0.2729569,171.04,171.01,14.82]
[1721898620242,0.2729569,171.04,171.02,14.82]
[1721898621523,0.2729569,171.04,171.03,14.82]
[1721898623829,0.2729569,171.04,171.02,14.82]
[1721898624629,0.2729569,171.04,170.99,40.0]
[1721898624630,0.2729569,171.04,171.03,14.82]
[1721898627214,0.2729569,171.04,171.03,14.82]
[1721898627728,0.2729569,171.04,170.98,40.0]
[1721898627911,0.2729569,171.04,171.03,14.82]
[1721898631520,0.2729569,171.04,171.03,34.82]
[1721898631728,15.62845,171.15,171.07,20.0]
[1721898631924,15.62845,171.15,171.1,14.82]
[1721898633319,0.80845,171.15,171.1,14.82]
[1721898633642,15.62845,171.15,171.1,14.82]
[1721898635735,0.80845,171.15,171.11,14.82]
[1721898636033,15.62845,171.15,171.09,14.82]
[1721898636234,15.62845,171.15,171.1,14.82]
[1721898636428,0.80845,171.15,171.09,14.82]
[1721898636630,0.80845,171.15,171.05,20.0]
[1721898636631,0.80845,171.15,171.1,14.82]
[1721898639032,14.82,171.13,171.03,49.74983003]
[1721898639227,14.82,171.12,171.07,14.82]
[1721898640341,14.82,171.13,171.07,14.82]
[1721898640644,14.82,171.11,171.04,20.0]
[1721898640941,0.80845,171.15,171.1,14.82]
[1721898641125,15.62845,171.15,171.1,14.82]
[1721898641643,0.80845,171.15,171.11,14.82]
[1721898642247,0.80845,171.15,171.08,20.0]
[1721898642424,0.80845,171.15,171.11,14.82]
[1721898643145,0.80845,171.15,171.08,20.0]
[1721898643146,0.80845,171.15,171.12,14.82]
[1721898644353,0.80845,171.15,171.03,27.41997966]
[1721898644354,0.80845,171.15,171.13,14.82]
[1721898644523,0.80845,171.15,171.07,20.0]
[1721898644724,0.80845,171.15,171.11,14.82]
[1721898648145,0.80845,171.15,171.08,20.0]
[1721898648450,0.80845,171.15,171.03,7.41997966]
[1721898648451,0.80845,171.15,171.1,14.82]
[1721898648624,0.80845,171.15,171.12,14.82]
[1721898650844,0.80845,171.15,171.13,14.82]
[1721898651346,0.80845,171.15,171.09,20.0]
[1721898651347,0.80845,171.15,171.14,14.82]
[1721898657062,0.80845,171.15,171.14,15.98830895]
[1721898657437,0.80845,171.15,171.14,14.82]
[1721898661472,0.80845,171.15,171.13,20.0]
[1721898661760,0.80845,171.15,171.14,14.82]
[1721898661939,0.80845,171.15,171.1,15.9724]
[1721898662144,0.80845,171.15,171.14,14.82]
[1721898664652,0.80845,171.15,171.1,15.9724]
[1721898664865,0.80845,171.15,171.13,14.82]
[1721898665759,0.80845,171.15,171.09,7.41997966]
[1721898665963,0.80845,171.15,171.1,14.82]
[1721898666340,0.80845,171.15,171.06,15.276]
[1721898666539,0.80845,171.15,171.1,14.82]
[1721898666737,0.80845,171.15,171.11,14.82]
[1721898666954,0.80845,171.15,171.12,14.82]
[1721898667260,0.80845,171.15,171.08,20.0]
[1721898667261,0.80845,171.15,171.13,14.82]
[1721898667556,0.80845,171.15,171.12,14.82]
[1721898667761,0.80845,171.15,171.11,14.82]
[1721898668263,0.80845,171.15,171.12,14.82]
[1721898673161,0.80845,171.15,171.11,14.82]
[1721898673364,0.80845,171.15,171.14,14.82]
[1721898676878,0.80845,171.15,171.14,34.82]
[1721898677064,0.80845,171.15,171.14,14.82]
[1721898678869,0.80845,171.15,171.14,15.98834414]
[1721898679377,0.80845,171.15,171.14,14.82]
[1721898682982,0.80845,171.15,171.14,34.82]
[1721898683163,0.80845,171.15,171.14,14.82]
[1721898686867,0.80845,171.15,171.11,1.16835375]
[1721898687177,0.80845,171.15,171.14,14.82]
[1721898689563,17.6,171.24,171.14,14.82]
[1721898689564,5.8375,171.31,171.19,20.0]
[1721898689786,5.8375,171.31,171.16,20.0]
[1721898689787,14.82,171.27,171.17,1.16788026]
[1721898690092,14.82,171.24,171.19,14.82]
[1721898690265,14.82,171.23,171.16,1.16820045]
[1721898690461,14.82,171.23,171.18,14.82]
[1721898690666,14.82,171.23,171.17,14.82]
[1721898690866,14.82,171.23,171.18,14.82]
[1721898691172,14.82,171.23,171.14,7.58186948]
[1721898691373,14.82,171.23,171.17,14.82]
[1721898691911,14.82,171.22,171.16,14.82]
[1721898693277,14.82,171.22,171.17,14.82]
[1721898693870,14.82,171.24,171.19,14.82]
[1721898694073,30.622,171.25,171.2,14.82]
[1721898694286,15.802,171.25,171.21,14.82]
[1721898694970,15.1611,171.29,171.21,14.82]
[1721898695301,14.82,171.27,171.22,14.82]
[1721898695467,14.82,171.28,171.22,14.82]
[1721898695663,29.9811,171.29,171.23,14.82]
[1721898696695,15.1611,171.29,171.23,14.82]
[1721898696871,29.9811,171.29,171.23,14.82]
[1721898698679,14.82,171.26,171.17,15.0175]
[1721898698897,14.82,171.26,171.2,14.82]
[1721898699196,32.7611,171.29,171.23,14.82]
[1721898699197,29.9811,171.29,171.23,14.82]
[1721898699701,14.82,171.27,171.22,14.82]
[1721898699993,14.82,171.28,171.23,14.82]
[1721898700303,14.82,171.27,171.22,14.82]
[1721898701505,0.80845,171.32,171.26,14.82]
[1721898701803,0.80845,171.32,171.23,41.16793192]
[1721898701804,15.62845,171.32,171.27,14.82]
[1721898702004,0.80845,171.32,171.27,14.82]
[1721898702223,0.80845,171.32,171.28,14.82]
[1721898703274,0.80845,171.32,171.22,40.0]
[1721898703470,14.82,171.31,171.23,20.0]
[1721898703688,14.82,171.3,171.23,20.0]